Workbook

Sheet Intro
B1: Stocker/Backgrounding Budget
B2: Version 1.0 2024
B4: Andrew P. Griffith
B5: Professor
B6: Office: (931) 486-2129 Email: agriff14@utk.edu
B8: Becky Bowling
B9: Extension Specialist I
B10: Office: (865) 974-7016 Email: bowling10@utk.edu
B33: The University of Tennessee is an EEO/AA/Title VI/Title IX/Section 504/ADA/ADEA institution in the provision of its education and employment programs and services. All qualified applicants will receive equal consideration for employment and admission without regard to race, color, national origin, religion, sex, pregnancy, marital status, sexual orientation, gender identity, age, physical or mental disability, genetic information, veteran status, and parental status.

Sheet Budget
A1: Estimated Returns and Expenses for Stocker/Backgrounding Operation in Tennessee
A2: Revenue
B3: Item | C3: Unit | D3: Quantity | E3: Price | F3: $/Head | G3: Group Total $
B4: Feeder Cattle1 | C4: lb | D4: =+'Group Data'!C20 -> 800.1516129 | E4: 2.4 | F4: =D4*E4*(1-'Group Data'!C21) -> 1843.549316 | G4: =F4*'Group Data'!$C$15 -> 114300.0576
C5: Total Revenue | F5: =SUM(F4:F4) -> 1843.549316 | G5: =SUM(G4:G4) -> 114300.0576
A7: Variable Expenses
B8: Calf Purchase | C8: lb | D8: =+'Group Data'!C17 -> 504.4354839 | E8: =+'Group Data'!C18 -> 2.5 | F8: =D8*E8 -> 1261.08871 | G8: =F8*'Group Data'!$C$15 -> 78187.5
B9: Pasture Production | C9: acre | D9: 0.6666666667 | E9: ='Pasture&Hay'!E16 -> 143.87 | F9: =D9*E9 -> 95.91333333 | G9: =F9*'Group Data'!$C$15 -> 5946.626667
B10: Hay Production | C10: acre | D10: 0.3 | E10: ='Pasture&Hay'!E37 -> 222.87 | F10: =D10*E10 -> 66.861 | G10: =F10*'Group Data'!$C$15 -> 4145.382
B11: Purchased Hay | C11: ton | E11: 100 | F11: =(D11*E11)/'Group Data'!C15 -> 0 | G11: =F11*'Group Data'!$C$15 -> 0
B12: Supplemental Feed | C12: lb | D12: ='Supp Feed'!G10 -> 601.3548387 | E12: ='Supp Feed'!H11 -> 0.175 | F12: 105.2370968 | G12: =F12*'Group Data'!$C$15 -> 6524.7
B13: Salt & Mineral | C13: lb | D13: 30 | E13: 0.46 | F13: 13.8 | G13: =F13*'Group Data'!$C$15 -> 855.6
B14: Vet & Med | C14: head | D14: 1 | E14: ='Vet&Med'!E13 -> 20.36 | F14: 20.36 | G14: =F14*'Group Data'!$C$15 -> 1262.32
B15: Other Expenses | C15: head | D15: 1 | E15: ='Other Expenses'!D9 -> 1.5 | F15: 1.5 | G15: =F15*'Group Data'!$C$15 -> 93
B16: Labor | C16: hours | D16: 4 | E16: 15 | F16: 60 | G16: =F16*'Group Data'!$C$15 -> 3720
B17: Production Expenses | F17: =SUM(F8:F16) -> 1624.76014 | G17: =SUM(G8:G16) -> 100735.1287
B19: Interest on Calf Purchase | C19: $ | D19: =F8 -> 1261.08871 | E19: 0.07 | F19: =D19*E19*('Group Data'!$C$16/365) -> 36.35981221 | G19: =F19*'Group Data'!$C$15 -> 2254.308357
B20: Interest on Other Variable Expenses | C20: $ | D20: =SUM(F9:F16) -> 363.6714301 | E20: 0.07 | F20: =D20*E20*('Group Data'!$C$16/365) -> 10.48540424 | G20: =F20*'Group Data'!$C$15 -> 650.095063
B21: Marketing1 | C21: head | D21: 1 | E21: =Marketing!E12 -> 26.60887329 | F21: =D21*E21*(1-'Group Data'!C21) -> 25.54451836 | G21: =F21*'Group Data'!$C$15 -> 1583.760138
B22: Land Rent | C22: acre | D22: 0 | E22: 0 | F22: =(D22*E22)/'Group Data'!C23 -> 0 | G22: =F22*'Group Data'!$C$15 -> 0
C23: Total Variable Expenses | F23: =SUM(F17:F22) -> 1697.149875 | G23: =SUM(G17:G22) -> 105223.2922
C24: Returns to Variable Expenses | F24: =F5-F23 -> 146.3994415 | G24: =G5-G23 -> 9076.765375
A25: Fixed Expenses
B26: Livestock Facilities & Equipment | C26: head | D26: 1 | E26: ='Buildings&Equipment'!P13 -> 11.6733125 | F26: =D26*E26 -> 11.6733125 | G26: =F26*'Group Data'!$C$15 -> 723.745375
B27: Pasture & Hay Machinery/Equipment | C27: head | D27: 1 | E27: ='Buildings&Equipment'!P36 -> 48.32784375 | F27: =D27*E27 -> 48.32784375 | G27: =F27*'Group Data'!$C$15 -> 2996.326312
B28: Miscellaneous Overhead2 | C28: head | D28: 1 | E28: =('Buildings&Equipment'!Q13+'Buildings&Equipment'!Q36) -> 47.65130458 | F28: =D28*E28*0.1 -> 4.765130458 | G28: =F28*'Group Data'!$C$15 -> 295.4380884
C29: Total Fixed Expenses | F29: =SUM(F26:F28) -> 64.76628671 | G29: =SUM(G26:G28) -> 4015.509776
C31: Total Expenses | F31: =F23+F29 -> 1761.916161 | G31: =G23+G29 -> 109238.802
B32: Net Return to Management | F32: =F5-F31 -> 81.63315482 | G32: =G5-G31 -> 5061.255599
A34: 1Feeder cattle revenue and marketing accounts for death loss. Revenue = 800 lb x $2.40/lb x (1 - death loss %). Marketing cost is calculated the same way
A36: 2Miscellaneous overhead is assumed to be 10 percent of total overhead costs to account for unforeseen costs associated with overhead.
A38: Users may type over the default values in the orange boxes with any valid number that reflects their specific circumstance.

Sheet Budget-Print (hidden)
A1: Estimated Returns and Expenses for Stocker/Backgrounding Operation in Tennessee
B2: Item | C2: Unit | D2: Quantity | E2: Price | F2: $/Head | G2: $/Group Total | H2: Your Farm
A3: Revenue
B4: Feeder Cattle1 | C4: lb | D4: =+Budget!D4 -> 800.1516129 | E4: =+Budget!E4 -> 2.4 | F4: =+Budget!F4 -> 1843.549316 | G4: =+Budget!G4 -> 114300.0576 | H4: _________
C5: Total Revenue | F5: =+Budget!F5 -> 1843.549316 | G5: =+Budget!G5 -> 114300.0576 | H5: _________
A7: Variable Expenses
B8: Calf Purchase | C8: lb | D8: =+Budget!D8 -> 504.4354839 | E8: =+Budget!E8 -> 2.5 | F8: =+Budget!F8 -> 1261.08871 | G8: =+Budget!G8 -> 78187.5 | H8: _________
B9: Pasture Production | C9: acre | D9: =+Budget!D9 -> 0.6666666667 | E9: =+Budget!E9 -> 143.87 | F9: =+Budget!F9 -> 95.91333333 | G9: =+Budget!G9 -> 5946.626667 | H9: _________
B10: Hay Production | C10: acre | D10: =+Budget!D10 -> 0.3 | E10: =+Budget!E10 -> 222.87 | F10: =+Budget!F10 -> 66.861 | G10: =+Budget!G10 -> 4145.382 | H10: _________
B11: Purchased Hay | C11: ton | D11: =+Budget!D11 -> 0 | E11: =+Budget!E11 -> 100 | F11: =+Budget!F11 -> 0 | G11: =+Budget!G11 -> 0 | H11: _________
B12: Supplemental Feed | C12: lb | D12: =+Budget!D12 -> 601.3548387 | E12: =+Budget!E12 -> 0.175 | F12: =+Budget!F12 -> 105.2370968 | G12: =+Budget!G12 -> 6524.7 | H12: _________
B13: Salt & Mineral | C13: lb | D13: =+Budget!D13 -> 30 | E13: =+Budget!E13 -> 0.46 | F13: =+Budget!F13 -> 13.8 | G13: =+Budget!G13 -> 855.6 | H13: _________
B14: Vet & Med | C14: head | D14: =+Budget!D14 -> 1 | E14: =+Budget!E14 -> 20.36 | F14: =+Budget!F14 -> 20.36 | G14: =+Budget!G14 -> 1262.32 | H14: _________
B15: Other Expenses | C15: head | D15: =+Budget!D15 -> 1 | E15: =+Budget!E15 -> 1.5 | F15: =+Budget!F15 -> 1.5 | G15: =+Budget!G15 -> 93 | H15: _________
B16: Labor | C16: hours | D16: =+Budget!D16 -> 4 | E16: =+Budget!E16 -> 15 | F16: =+Budget!F16 -> 60 | G16: =+Budget!G16 -> 3720 | H16: _________
B17: Production Expenses | F17: =SUM(F8:F16) -> 1624.76014 | G17: =SUM(G8:G16) -> 100735.1287 | H17: _________
B19: Interest on Calf Purchase | C19: $ | D19: =+Budget!D19 -> 1261.08871 | E19: =+Budget!E19 -> 0.07 | F19: =+Budget!F19 -> 36.35981221 | G19: =+Budget!G19 -> 2254.308357 | H19: _________
B20: Interest on Other Variable Expenses | C20: $ | D20: =+Budget!D20 -> 363.6714301 | E20: =+Budget!E20 -> 0.07 | F20: =+Budget!F20 -> 10.48540424 | G20: =+Budget!G20 -> 650.095063 | H20: _________
B21: Marketing | C21: head | D21: =+Budget!D21 -> 1 | E21: =+Budget!E21 -> 26.60887329 | F21: =+Budget!F21 -> 25.54451836 | G21: =+Budget!G21 -> 1583.760138 | H21: _________
B22: Land Rent | C22: acre | D22: =+Budget!D22 -> 0 | E22: =+Budget!E22 -> 0 | F22: =+Budget!F22 -> 0 | G22: =+Budget!G22 -> 0 | H22: _________
C23: Total Variable Expenses | F23: =SUM(F17:F22) -> 1697.149875 | G23: =SUM(G17:G22) -> 105223.2922 | H23: _________
C24: Returns to Variable Expenses | F24: =+Budget!F24 -> 146.3994415 | G24: =+Budget!G24 -> 9076.765375 | H24: _________
A25: Fixed Expenses
B26: Livestock Facilities & Equipment | C26: head | D26: =+Budget!D26 -> 1 | E26: =+Budget!E26 -> 11.6733125 | F26: =+Budget!F26 -> 11.6733125 | G26: =+Budget!G26 -> 723.745375 | H26: _________
B27: Pasture & Hay Machinery/Equipment | C27: head | D27: =+Budget!D27 -> 1 | E27: =+Budget!E27 -> 48.32784375 | F27: =+Budget!F27 -> 48.32784375 | G27: =+Budget!G27 -> 2996.326312 | H27: _________
B28: Miscellaneous Overhead2 | C28: head | D28: =+Budget!D28 -> 1 | E28: =+Budget!E28 -> 47.65130458 | F28: =+Budget!F28 -> 4.765130458 | G28: =+Budget!G28 -> 295.4380884 | H28: _________
C29: Total Fixed Expenses | F29: =SUM(F26:F28) -> 64.76628671 | G29: =SUM(G26:G28) -> 4015.509776 | H29: _________
H30: _________
C31: Total Expenses | F31: =+Budget!F31 -> 1761.916161 | G31: =+Budget!G31 -> 109238.802 | H31: _________
B32: Net Return to Management | F32: =+Budget!F32 -> 81.63315482 | G32: =+Budget!G32 -> 5061.255599 | H32: _________
A34: Footnotes:
A35: 1Feeder cattle revenue and marketing accounts for death loss. Revenue = 800 lb x $2.40/lb x (1 - death loss %). Marketing cost is calculated the same way.
A37: 2Miscellaneous overhead is assumed to be 10 percent of total overhead costs to account for unforeseen costs associated with overhead.

Sheet Group Data
BA1: 25 | BB1: 20 | BC1: 12 | BD1: 5
A2: Group 1 Data | E2: Group 2 Data | I2: Group 3 Data | M2: Group 4 Data | BA2: 157 | BB2: 150 | BC2: 143 | BD2: 136
A3: Item | B3: Unit | C3: Quantity | E3: Item | F3: Unit | G3: Quantity | I3: Item | J3: Unit | K3: Quantity | M3: Item | N3: Unit | O3: Quantity | BA3: 490 | BB3: 500 | BC3: 525 | BD3: 545
A4: Number of head in group | B4: head | C4: 25 | E4: Number of head in group | F4: head | G4: 20 | I4: Number of head in group | J4: head | K4: 12 | M4: Number of head in group | N4: head | O4: 5 | BA4: 1.54 | BB4: 1.49 | BC4: 1.45 | BD4: 1.48
A5: Number of days stockered | B5: days | C5: 157 | E5: Number of days stockered | F5: days | G5: 150 | I5: Number of days stockered | J5: days | K5: 143 | M5: Number of days stockered | N5: days | O5: 136 | BA5: 2 | BB5: 2 | BC5: 1.9 | BD5: 1.8
A6: Calf purchase weight | B6: lb | C6: 490 | E6: Calf purchase weight | F6: lb | G6: 500 | I6: Calf purchase weight | J6: lb | K6: 525 | M6: Calf purchase weight | N6: lb | O6: 545
A7: Calf purchase price | B7: $/lb | C7: 2.5 | E7: Calf purchase price | F7: $/lb | G7: 2.5 | I7: Calf purchase price | J7: $/lb | K7: 2.5 | M7: Calf purchase price | N7: $/lb | O7: 2.5
A8: Average daily gain | B8: lbs | C8: 2 | E8: Average daily gain | F8: lbs | G8: 2 | I8: Average daily gain | J8: lbs | K8: 1.9 | M8: Average daily gain | N8: lbs | O8: 1.8
A9: Calf sale weight | B9: lb | C9: =SUM(C8*C5)+C6 -> 804 | E9: Calf sale weight | F9: lb | G9: =SUM(G8*G5)+G6 -> 800 | I9: Calf sale weight | J9: lb | K9: =SUM(K8*K5)+K6 -> 796.7 | M9: Calf sale weight | N9: lb | O9: =SUM(O8*O5)+O6 -> 789.8
A13: Group Total Data
A14: Item | B14: Unit | C14: Quantity
A15: Number of head in group | B15: head | C15: =SUM(C4,G4,K4,O4) -> 62
A16: Average number of days stockered | B16: days | C16: =IF(C15=0,0,(C4*C5+G4*G5+K4*K5+O4*O5)/C15) -> 150.3387097
A17: Average calf purchase weight | B17: lb | C17: =IF(C15=0,0,(C4*C6+G4*G6+K4*K6+O4*O6)/C15) -> 504.4354839
A18: Average calf purchase price | B18: $/lb | C18: =IF(C7=0,0,(C4*C6*C7+G4*G6*G7+K4*K6*K7+O4*O6*O7)/(C4*C6+G4*G6+K4*K6+O4*O6)) -> 2.5
A19: Average daily gain | B19: lbs | C19: =IF(C15=0,0,(C4*C8+G4*G8+K4*K8+O4*O8)/C15) -> 1.964516129
A20: Calf sale weight | B20: lb | C20: =IF(C15=0,0,(C4*C9+G4*G9+K4*K9+O4*O9)/C15) -> 800.1516129
A21: Death loss | B21: % | C21: 0.04
A23: Expected number of head stockered in a year | B23: head | C23: 500
A28: Users may type over the default values in the orange boxes with any valid number that reflects their specific circumstance.

Sheet Supp Feed
A2: Supplemental Feed for Calves
D3: Unit Weight | F3: Quantity Fed | G3: Total Fed | H3: Cost
A4: Feed Description | B4: Unit | C4: $/Unit | D4: lbs | E4: Days Fed | F4: lbs/day | G4: lbs | H4: $/Calf
A5: 14% Commercial Feed | B5: ton | C5: 350 | D5: 2000 | E5: ='Group Data'!$C$16 -> 150.3387097 | F5: 4 | G5: =E5*F5 -> 601.3548387 | H5: =IF(G5>0,(G5/D5)*C5,0) -> 105.2370968
A6: Corn Gluten | B6: ton | C6: 240 | D6: 2000 | E6: ='Group Data'!$C$16 -> 150.3387097 | G6: =E6*F6 -> 0 | H6: =IF(G6>0,(G6/D6)*C6,0) -> 0
A7: Soy Hulls | B7: ton | C7: 225 | D7: 2000 | E7: ='Group Data'!$C$16 -> 150.3387097 | G7: 0 | H7: 0
A8: Other | C8: 0 | E8: ='Group Data'!$C$16 -> 150.3387097 | G8: 0 | H8: 0
A9: Other | C9: 0 | E9: ='Group Data'!$C$16 -> 150.3387097 | G9: 0 | H9: 0
A10: Total Cost of Supplemental Feed for Calves | G10: =SUM(G5:G9) -> 601.3548387 | H10: =SUM(H5:H9) -> 105.2370968
G11: $/lb. Fed | H11: =IF(G10>0,H10/G10,0) -> 0.175
A14: Users may type over the default values in the orange boxes with any valid number that reflects their specific circumstance.

Sheet Pasture&Hay
A2: Pasture Expenses per Acre
E3: Cost
A4: Item | B4: Unit | C4: $/Unit | D4: Quantity | E4: $/acre
A5: Prorated Establishment Cost | B5: acre | C5: 40 | D5: 1 | E5: =C5*D5 -> 40
A6: Nitrogen | B6: lb | C6: 0.6 | D6: 60 | E6: =C6*D6 -> 36
A7: Phosphorus (P2O5) | B7: lb | C7: 0.53 | D7: 30 | E7: 15.9
A8: Potassium (K2O) | B8: lb | C8: 0.43 | D8: 30 | E8: 12.9
A9: Fertilizer Application | B9: acre | C9: 9 | D9: 1 | E9: 9
A10: Lime | B10: ton | C10: 50 | D10: 0.2 | E10: 10
A11: Lime Application | B11: acre | C11: 12 | D11: 0.2 | E11: 2.4 | H11: Hay & Pasture Acreage Calculator per Stocker
A12: Herbicide | B12: acre | C12: 7 | D12: 1 | E12: 7 | H12: Stocking Rate (head/acre) | I12: 1.5
A13: Herbicide Application | B13: acre | C13: 10.67 | D13: 1 | E13: 10.67 | H13: Hay Yield (tons/acre) | I13: 2.5
A14: Other | B14: acre | C14: 0 | E14: =C14*D14 -> 0 | H14: Feeding (days/year) | I14: 150
A15: Other | B15: acre | C15: 0 | E15: 0 | H15: Fed (lb/day) | I15: 10
A16: Total Pasture Expenses | E16: =SUM(E5:E15) -> 143.87 | H16: Total Fed (tons/year) | I16: =(I14*I15)/2000 -> 0.75
H17: Pasture (acre/stocker) | I17: =SUM(1/I12) -> 0.6666666667
A18: Hay Expenses per Acre | H18: Hay (acre/stocker) | I18: =SUM(I16/I13) -> 0.3
E19: Cost
A20: Item | B20: Unit | C20: $/Unit | D20: Quantity | E20: $/acre
A21: Prorated Establishment Cost | B21: acre | C21: 40 | D21: 1 | E21: =C21*D21 -> 40
A22: Nitrogen | B22: lb | C22: 0.6 | D22: 100 | E22: =C22*D22 -> 60
A23: Phosphorus (P2O5) | B23: lb | C23: 0.53 | D23: 30 | E23: 15.9
A24: Potassium (K2O) | B24: lb | C24: 0.43 | D24: 30 | E24: 12.9
A25: Fertilizer Application | B25: acre | C25: 9 | D25: 1 | E25: 9
A26: Lime | B26: ton | C26: 50 | D26: 0.2 | E26: 10
A27: Lime Application | B27: acre | C27: 12 | D27: 0.2 | E27: 2.4
A28: Herbicide | B28: acre | C28: 7 | D28: 1 | E28: 7
A29: Herbicide Application | B29: acre | C29: 10.67 | D29: 1 | E29: 10.67
A30: Mowing | B30: acre | C30: 17.5 | D30: 1 | E30: 17.5
A31: Teddering | B31: acre | C31: 9.5 | D31: 1 | E31: 9.5
A32: Raking | B32: acre | C32: 9 | D32: 1 | E32: 9
A33: Baling | B33: bale | C33: 14 | D33: 1 | E33: 14
A34: Moving/Hauling | B34: acre | C34: 5 | D34: 1 | E34: 5
A35: Other | B35: acre | C35: 0 | E35: =C35*D35 -> 0
A36: Other | B36: acre | C36: 0 | E36: 0
A37: Total Hay Expenses | E37: =SUM(E21:E36) -> 222.87
A38: To assist in calculating fertilizer costs and hay needs visit the following web address:
A39: https://arec.tennessee.edu/extension/
A41: Users may type over the default values in the orange boxes with any valid number that reflects their specific circumstance.

Sheet Vet&Med
A2: Veterinary Expenses for Calves
D3: No. of | E3: Total
A4: Item Description | B4: Unit | C4: $/Unit | D4: Treatments | E4: $/head
A5: Implant | B5: head | C5: 5 | D5: 1 | E5: =C5*D5 -> 5
A6: Respiratory Vaccine, IBR/BVD/PI3/BRSV | B6: head | C6: 2 | D6: 1 | E6: =C6*D6 -> 2
A7: Respiratory Vaccine, IBR/BVD/PI3/BRSV, (pasteurella) | B7: head | C7: 5.2 | D7: 1 | E7: =C7*D7 -> 5.2
A8: Clostridial Bacterin/Toxoid, 7-way Blackleg/Somubac | B8: head | C8: 1.33 | D8: 2 | E8: =C8*D8 -> 2.66
A9: Deworm | B9: head | C9: 4 | D9: 1 | E9: 4
A10: Fly Tags | B10: head | C10: 1.5 | D10: 1 | E10: 1.5
A11: Other | B11: head | C11: 0 | D11: 1 | E11: =C11*D11 -> 0
A12: Other | B12: head | C12: 0 | D12: 1 | E12: 0
A13: Total Veterinary Expenses for Calves | E13: =SUM(E5:E12) -> 20.36
A17: Users may type over the default values in the orange boxes with any valid number that reflects their specific circumstance.

Sheet Marketing
A2: Marketing Cost
D3: Price | E3: Amount
A4: Item | B4: Unit | C4: Quantity | D4: $/unit | E4: $/head
A5: Commission | B5: % | C5: 0 | D5: =Budget!F5 -> 1843.549316 | E5: =C5*D5 -> 0
A6: Commission | B6: Head | C6: 1 | D6: 16 | E6: =C6*D6 -> 16
A7: Yardage | B7: Day | C7: 1 | D7: 0 | E7: 0
A8: Check-off | B8: Head | C8: 1 | D8: 1.5 | E8: 1.5
A9: Insurance | B9: % | C9: 0.0025 | D9: =Budget!F5 -> 1843.549316 | E9: 4.60887329
A10: Hauling | B10: Loaded Miles | C10: 30 | D10: 3 | E10: =C10*D10/F10 -> 4.5 | F10: 20 | G10: Head per load
A11: Other | E11: 0
A12: Total Marketing Cost | E12: =SUM(E5:E11) -> 26.60887329
A14: Users may type over the default values in the orange boxes with any valid number that reflects their specific circumstance.

Sheet Buildings&Equipment
A2: Buildings and Handling Equipment Expenses
B3: Purchase | E3: Salvage | F3: Salvage | G3: Average | H3: Useful | J3: Interest | M3: Property | P3: Fixed Cost | Q3: Overhead
A4: Item | B4: Price | C4: Units | D4: Cost | E4: Percent | F4: Value1 | G4: Value2 | H4: Life | I4: Depreciation3 | J4: Rate | K4: Interest4 | L4: Insurance5 | M4: Tax6 | N4: Repairs7 | O4: Head/yr | P4: $/Head | Q4: $/Head
A5: Hay Barn (30'X50'X14') | B5: 9000 | C5: 1 | D5: =B5*C5 -> 9000 | E5: 0.2 | F5: =D5*E5 -> 1800 | G5: =(D5+F5+I5)/2 -> 5640 | H5: 15 | I5: =(D5-F5)/H5 -> 480 | J5: 0.0525 | K5: =G5*J5 -> 296.1 | L5: =G5*0.005 -> 28.2 | M5: =G5*0.005 -> 28.2 | N5: =D5*0.02 -> 180 | O5: =+'Group Data'!$C$23 -> 500 | P5: =(I5+SUM(K5:N5))/O5 -> 2.025 | Q5: =(I5+K5)/O5 -> 1.5522
A6: Equipment Shed (20'X40'X14') | B6: 5000 | C6: 1 | D6: =B6*C6 -> 5000 | E6: 0.2 | F6: =D6*E6 -> 1000 | G6: =(D6+F6+I6)/2 -> 3133.333333 | H6: 15 | I6: =(D6-F6)/H6 -> 266.6666667 | J6: 0.0525 | K6: =G6*J6 -> 164.5 | L6: =G6*0.005 -> 15.66666667 | M6: =G6*0.005 -> 15.66666667 | N6: =D6*0.02 -> 100 | O6: =+'Group Data'!$C$23 -> 500 | P6: =(I6+SUM(K6:N6))/O6 -> 1.125 | Q6: =(I6+K6)/O6 -> 0.8623333333
A7: Corral and Chute/Head Gate | B7: 13000 | C7: 1 | D7: 13000 | E7: 0.16 | F7: 2080 | G7: 8222.5 | H7: 8 | I7: 1365 | J7: 0.0525 | K7: 431.68125 | L7: 41.1125 | M7: 41.1125 | N7: 260 | O7: =+'Group Data'!$C$23 -> 500 | P7: 4.2778125 | Q7: 3.5933625
A8: Fencing | B8: 14000 | C8: 1 | D8: 14000 | E8: 0 | F8: 0 | G8: 7700 | H8: 10 | I8: 1400 | J8: 0.0525 | K8: 404.25 | L8: 38.5 | M8: =G8*0 -> 0 | N8: 280 | O8: =+'Group Data'!$C$23 -> 500 | P8: 4.2455 | Q8: 3.6085
A9: Water Systems | B9: 7000 | C9: 0 | D9: 0 | E9: 0 | F9: 0 | G9: 0 | H9: 10 | I9: 0 | J9: 0.0525 | K9: 0 | L9: 0 | M9: =G9*0 -> 0 | N9: 0 | O9: =+'Group Data'!$C$23 -> 500 | P9: 0 | Q9: 0
A10: Stock Trailer (6'X20') | B10: 12000 | C10: 0 | D10: =B10*C10 -> 0 | E10: 0.31 | F10: =D10*E10 -> 0 | G10: =(D10+F10+I10)/2 -> 0 | H10: 11 | I10: =(D10-F10)/H10 -> 0 | J10: 0.0525 | K10: =G10*J10 -> 0 | L10: =G10*0.005 -> 0 | M10: =G10*0.005 -> 0 | N10: =D10*0.02 -> 0 | O10: =+'Group Data'!$C$23 -> 500 | P10: =(I10+SUM(K10:N10))/O10 -> 0 | Q10: =(I10+K10)/O10 -> 0
A11: Other | B11: 0 | C11: 0 | D11: 0 | E11: 0 | F11: 0 | G11: 0 | H11: 10 | I11: 0 | J11: 0.0525 | K11: 0 | L11: 0 | M11: 0 | N11: 0 | O11: =+'Group Data'!$C$23 -> 500 | P11: 0 | Q11: 0
A12: Other | B12: 0 | C12: 0 | D12: 0 | E12: 0 | F12: 0 | G12: 0 | H12: 10 | I12: 0 | J12: 0.0525 | K12: 0 | L12: 0 | M12: 0 | N12: 0 | O12: =+'Group Data'!$C$23 -> 500 | P12: 0 | Q12: 0
A13: Total Building and Handling Equipment Expenses | P13: =SUM(P5:P12) -> 11.6733125 | Q13: =SUM(Q5:Q12) -> 9.616395833
A14: 1Salvage Value is assumed percentage of Cost
A15: 2Average Value = (Cost + Salvage Value + 1-year Depreciation) ÷ 2
A16: 3Depreciation = (Cost - Salvage Value ÷ Useful Life)
A17: 4Interest = (Average Value × Interest Rate)
A18: 5Insurance = (Average Value × 0.5%)
A19: 6Property Tax = (Average Value × 0.5%), Fencing and Watering = 0%
A20: 7Repairs = (Cost × 1%)
A22: Machinery Expenses
B23: Purchase | E23: Salvage | F23: Salvage | G23: Average | H23: Useful | J23: Interest | M23: Property | P23: Fixed Cost | Q23: Overhead
A24: Item | B24: Price | C24: Units | D24: Cost | E24: Percent | F24: Value1 | G24: Value2 | H24: Life | I24: Depreciation3 | J24: Rate | K24: Interest4 | L24: Insurance5 | M24: Tax6 | N24: Repairs7 | O24: Head/yr | P24: $/Head | Q24: $/Head
A25: 60 hp Tractor | B25: 35000 | C25: 1 | D25: =B25*C25 -> 35000 | E25: 0.33 | F25: =D25*E25 -> 11550 | G25: =(D25+F25+I25)/2 -> 24056.66667 | H25: 15 | I25: =(D25-F25)/H25 -> 1563.333333 | J25: 0.0525 | K25: =G25*J25 -> 1262.975 | L25: =G25*0.005 -> 120.2833333 | M25: =G25*0.005 -> 120.2833333 | N25: =D25*0.02 -> 700 | O25: =+'Group Data'!$C$23 -> 500 | P25: =(I25+SUM(K25:N25))/O25 -> 7.53375 | Q25: =(I25+K25)/O25 -> 5.652616667
A26: 80 hp Tractor | B26: 45000 | C26: 1 | D26: =B26*C26 -> 45000 | E26: 0.33 | F26: =D26*E26 -> 14850 | G26: =(D26+F26+I26)/2 -> 30930 | H26: 15 | I26: =(D26-F26)/H26 -> 2010 | J26: 0.0525 | K26: =G26*J26 -> 1623.825 | L26: =G26*0.005 -> 154.65 | M26: =G26*0.005 -> 154.65 | N26: =D26*0.02 -> 900 | O26: =+'Group Data'!$C$23 -> 500 | P26: =(I26+SUM(K26:N26))/O26 -> 9.68625 | Q26: =(I26+K26)/O26 -> 7.26765
A27: Disc Mower (10'6'' cut) | B27: 11000 | C27: 1 | D27: 11000 | E27: 0.14 | F27: 1540 | G27: 6861.25 | H27: 8 | I27: 1182.5 | J27: 0.0525 | K27: 360.215625 | L27: 34.30625 | M27: 34.30625 | N27: 220 | O27: =+'Group Data'!$C$23 -> 500 | P27: 3.66265625 | Q27: 3.08543125
A28: Hay Rake (8-Wheel) | B28: 9000 | C28: 1 | D28: 9000 | E28: 0.2 | F28: 1800 | G28: 5760 | H28: 10 | I28: 720 | J28: 0.0525 | K28: 302.4 | L28: 28.8 | M28: 28.8 | N28: 180 | O28: =+'Group Data'!$C$23 -> 500 | P28: 2.52 | Q28: 2.0448
A29: Hay Baler (Round 5'X6') | B29: 35000 | C29: 1 | D29: 35000 | E29: 0.27 | F29: 9450 | G29: 23502.5 | H29: 10 | I29: 2555 | J29: 0.0525 | K29: 1233.88125 | L29: 117.5125 | M29: 117.5125 | N29: 700 | O29: =+'Group Data'!$C$23 -> 500 | P29: 9.4478125 | Q29: 7.5777625
A30: Hay Wagon | B30: 4000 | C30: 1 | D30: 4000 | E30: 0.1 | F30: 400 | G30: 2380 | H30: 10 | I30: 360 | J30: 0.0525 | K30: 124.95 | L30: 11.9 | M30: 11.9 | N30: 80 | O30: =+'Group Data'!$C$23 -> 500 | P30: 1.1775 | Q30: 0.9699
A31: Rotary Mower (15') | B31: 12000 | C31: 1 | D31: 12000 | E31: 0.14 | F31: 1680 | G31: 7485 | H31: 8 | I31: 1290 | J31: 0.0525 | K31: 392.9625 | L31: 37.425 | M31: 37.425 | N31: 240 | O31: =+'Group Data'!$C$23 -> 500 | P31: 3.995625 | Q31: 3.365925
A32: Tractor Mounted Sprayer | B32: 2000 | C32: 1 | D32: 2000 | E32: 0.38 | F32: 760 | G32: 1421.333333 | H32: 15 | I32: 82.66666667 | J32: 0.0525 | K32: 74.62 | L32: 7.106666667 | M32: 7.106666667 | N32: 40 | O32: =+'Group Data'!$C$23 -> 500 | P32: 0.423 | Q32: 0.3145733333
A33: Truck | B33: 40000 | C33: 1 | D33: 40000 | E33: 0.25 | F33: 10000 | G33: 26250 | H33: 12 | I33: 2500 | J33: 0.0525 | K33: 1378.125 | L33: 131.25 | M33: 131.25 | N33: 800 | O33: =+'Group Data'!$C$23 -> 500 | P33: 9.88125 | Q33: 7.75625
A34: Other | B34: 0 | C34: 0 | D34: =B34*C34 -> 0 | E34: 0 | F34: =D34*E34 -> 0 | G34: =(D34+F34+I34)/2 -> 0 | H34: 10 | I34: =(D34-F34)/H34 -> 0 | J34: 0.0525 | K34: =G34*J34 -> 0 | L34: =G34*0.005 -> 0 | M34: =G34*0.005 -> 0 | N34: =D34*0.02 -> 0 | O34: =+'Group Data'!$C$23 -> 500 | P34: 0 | Q34: 0
A35: Other | B35: 0 | C35: 0 | D35: =B35*C35 -> 0 | E35: 0 | F35: =D35*E35 -> 0 | G35: =(D35+F35+I35)/2 -> 0 | H35: 10 | I35: =(D35-F35)/H35 -> 0 | J35: 0.0525 | K35: =G35*J35 -> 0 | L35: =G35*0.005 -> 0 | M35: =G35*0.005 -> 0 | N35: =D35*0.02 -> 0 | O35: =+'Group Data'!$C$23 -> 500 | P35: =(I35+SUM(K35:N35))/O35 -> 0 | Q35: =(I35+K35)/O35 -> 0
A36: Total Machinery Expenses | P36: =SUM(P25:P35) -> 48.32784375 | Q36: =SUM(Q25:Q35) -> 38.03490875
A37: 1Salvage Value is assumed percentage of Cost
A38: 2Average Value = (Cost + Salvage Value + 1-year Depreciation) ÷ 2
A39: 3Depreciation = (Cost - Salvage Value ÷ Useful Life)
A40: 4Interest = (Average Value × Interest Rate)
A41: 5Insurance = (Average Value × 0.5%)
A42: 6Property Tax = (Average Value × 0.5%), Fencing and Watering = 0%
A43: 7Repairs = (Cost × 1%)
A45: To assist in calculating fencing costs visit the following web address:
A46: https://arec.tennessee.edu/extension/
A48: Users may type over the default values in the orange boxes with any valid number that reflects their specific circumstance.

Sheet Other Expenses
A2: Other Expenses
C3: Price | D3: Amount
A4: Item | B4: Unit | C4: $/unit | D4: $/head
A5: Tags | B5: Head | C5: 1.5 | D5: =C5 -> 1.5
A6: Other | B6: Head | D6: 0
A7: Other | B7: Head | D7: 0
A8: Other | B8: Head | D8: 0
A9: Total Other Expenses | D9: =SUM(D5:D8) -> 1.5
A11: Users may type over the default values in the orange boxes with any valid number that reflects their specific circumstance.
